bitfinex-derivatives/quotes_BTCF0:USTF0_20250324
["timestamp","ask_amount","ask_price","bid_price","bid_amount"]
[1742857559075,0.1144511,87363.0,87362.0,0.3608]
[1742857559277,0.1161311,87363.0,87362.0,0.3608]
[1742857560189,0.1161311,87363.0,87362.0,0.3628]
[1742857560575,0.1161311,87363.0,87362.0,0.002]
[1742857562284,0.1161311,87363.0,87362.0,0.1164525]
[1742857562678,0.1161311,87363.0,87362.0,0.11781557]
[1742857563789,0.5261311,87363.0,87362.0,0.11781557]
[1742857564892,0.7153311,87363.0,87362.0,0.00336307]
[1742857567278,0.60088,87363.0,87343.0,0.00045796]
[1742857567485,0.1144734,87346.0,87345.0,0.446992]
[1742857567683,0.1144734,87346.0,87345.0,0.4814667]
[1742857567891,0.11552198,87346.0,87345.0,0.4814667]
[1742857568091,0.31790198,87346.0,87345.0,0.4814667]
[1742857568291,0.31622198,87346.0,87345.0,0.5020244]
[1742857568791,0.31722198,87346.0,87345.0,0.5020244]
[1742857569794,0.31722198,87346.0,87345.0,0.5961244]
[1742857570089,0.31822198,87346.0,87345.0,0.5961244]
[1742857570286,0.31822198,87346.0,87345.0,0.6970244]
[1742857572982,0.31990198,87346.0,87345.0,0.6970244]
[1742857574084,0.2176534,87346.0,87345.0,1.1970244]
[1742857574292,0.00368,87346.0,87345.0,1.1970244]
[1742857574496,0.002,87346.0,87345.0,1.1970244]
[1742857577402,0.1164734,87346.0,87345.0,0.9440297]
[1742857577803,0.3165534,87346.0,87345.0,1.0585044]
[1742857578502,0.20208,87346.0,87345.0,1.0585044]
[1742857578694,0.3165534,87346.0,87345.0,1.0585044]
[1742857579091,0.20208,87346.0,87345.0,1.0585044]
[1742857579493,0.3165534,87346.0,87345.0,1.0585044]
[1742857579693,0.3165534,87346.0,87345.0,0.9440297]
[1742857580098,0.3165534,87346.0,87345.0,1.0585044]
[1742857580894,0.31760198,87346.0,87345.0,1.0585044]
[1742857581297,0.31760198,87346.0,87345.0,0.7490297]
[1742857581801,0.31760198,87346.0,87345.0,0.8635044]
[1742857583204,0.31760198,87346.0,87345.0,0.5020244]
[1742857583904,0.31760198,87346.0,87345.0,0.3875497]
[1742857584098,0.31760198,87346.0,87345.0,0.0267497]
[1742857584690,0.31760198,87346.0,87345.0,0.006192]
[1742857585202,0.31660198,87346.0,87345.0,0.006192]
[1742857585404,0.31760198,87346.0,87345.0,0.006192]
[1742857586206,0.37326161,87346.0,87345.0,0.006192]
[1742857591707,0.37326161,87346.0,87345.0,0.1206667]
[1742857592310,0.37326161,87346.0,87345.0,0.006192]
[1742857592808,0.57786763,87346.0,87345.0,0.006192]
[1742857594494,0.98786763,87346.0,87345.0,0.006192]
[1742857594908,1.01343267,87346.0,87345.0,0.006192]
[1742857595904,0.80882665,87346.0,87345.0,0.006192]
[1742857596501,0.81738005,87346.0,87345.0,0.006192]
[1742857598411,0.79181501,87346.0,87345.0,0.006192]
[1742857600323,0.93911705,87346.0,87345.0,0.006192]
[1742857600624,0.93056365,87346.0,87345.0,0.006192]
[1742857604312,0.93930236,87346.0,87345.0,0.006192]
[1742857606222,0.94826027,87346.0,87345.0,0.006192]
[1742857607219,0.94823484,87346.0,87345.0,0.25460037]
[1742857607416,0.94823484,87346.0,87345.0,0.02460037]
[1742857607820,0.94823484,87346.0,87345.0,0.21490037]
[1742857609128,0.94823484,87346.0,87345.0,0.46490037]
[1742857609927,0.94823484,87346.0,87345.0,0.21490037]
[1742857610116,0.94822213,87346.0,87345.0,0.21490037]
[1742857611225,0.94823246,87346.0,87345.0,0.21490037]
[1742857611421,0.94823246,87346.0,87345.0,0.196492]
[1742857612325,0.94823258,87346.0,87345.0,0.196492]
[1742857612626,0.97501992,87346.0,87345.0,0.16070325]
[1742857613218,0.9660897,87346.0,87345.0,0.16070325]
[1742857614023,0.9660897,87346.0,87345.0,0.17916137]
[1742857614630,1.14032147,87346.0,87345.0,0.17916137]
[1742857615328,1.14032147,87346.0,87345.0,0.86455607]
[1742857615329,0.38961215,87346.0,87345.0,0.86455607]
[1742857615533,0.3608,87364.0,87359.0,0.1144564]
[1742857615830,0.38732026,87360.0,87359.0,0.7260964]
[1742857616326,0.27286516,87360.0,87359.0,0.7260964]
[1742857616720,0.46186516,87360.0,87359.0,0.7270964]
[1742857617319,0.46186516,87360.0,87359.0,0.7280964]
[1742857618025,0.19016,87360.0,87359.0,0.7280964]
[1742857618627,0.19016,87360.0,87359.0,0.8279964]
[1742857619534,0.20435692,87367.0,87359.0,0.8279964]
[1742857619535,0.41,87380.0,87359.0,1.22434]
[1742857619739,0.1144333,87377.0,87376.0,0.1144328]
[1742857620031,0.2092321,87378.0,87377.0,0.1144328]
[1742857620335,0.18672,87378.0,87377.0,0.6066128]
[1742857621322,0.1858,87378.0,87377.0,0.6066128]
[1742857621521,0.1858,87378.0,87377.0,0.61528882]
[1742857622134,0.093,87378.0,87377.0,0.61528882]
[1742857623137,0.002,87378.0,87377.0,0.61528882]
[1742857623432,0.003,87378.0,87377.0,0.61528882]
[1742857624626,0.003,87378.0,87377.0,0.63395519]
[1742857627726,0.01175533,87378.0,87377.0,0.63395519]
[1742857627931,0.01175533,87378.0,87377.0,0.38377917]
[1742857628229,0.12618683,87378.0,87377.0,0.38377917]
[1742857628430,0.12702683,87378.0,87377.0,0.49441917]
[1742857629023,0.32202683,87378.0,87377.0,0.49441917]
[1742857631433,0.32202683,87378.0,87377.0,0.00068]
[1742857631635,0.1144354,87375.0,87374.0,0.7216]
[1742857631836,0.11547541,87375.0,87374.0,0.2114]
[1742857632030,0.20587541,87375.0,87374.0,0.2114]
[1742857632232,0.20587541,87375.0,87374.0,0.3258367]
[1742857632433,0.21463074,87375.0,87374.0,0.2114]
[1742857632639,0.21463074,87375.0,87374.0,0.3258367]
[1742857633327,0.21563074,87375.0,87374.0,0.1150367]
[1742857633529,0.114442,87370.0,87369.0,0.00017164]
[1742857633739,0.11568201,87370.0,87369.0,0.00017164]
[1742857634342,0.12443734,87370.0,87369.0,0.00017164]
[1742857634743,0.12443734,87370.0,87369.0,0.00117164]
[1742857635041,0.21843734,87370.0,87369.0,0.11561494]
[1742857635244,0.62843734,87370.0,87369.0,0.00117164]
[1742857636536,0.72133734,87370.0,87369.0,0.00017164]
[1742857636737,0.72233734,87370.0,87369.0,0.00017164]
[1742857637243,0.72333734,87370.0,87369.0,0.00017164]
[1742857640343,0.72233734,87370.0,87369.0,0.00017164]
[1742857640546,0.72533734,87370.0,87369.0,0.00017164]
[1742857640844,0.86112651,87370.0,87369.0,0.00017164]
[1742857641036,0.85912651,87370.0,87369.0,0.00017164]
[1742857641436,0.85712651,87370.0,87369.0,0.00017164]
[1742857641631,0.85812651,87370.0,87369.0,0.00017164]
[1742857643643,0.86718362,87370.0,87369.0,0.00017164]
[1742857643849,0.85812651,87370.0,87369.0,0.00017164]
[1742857644241,0.86818834,87370.0,87369.0,0.00017164]
[1742857644439,0.88279332,87370.0,87369.0,0.00017164]
[1742857644637,0.74700415,87370.0,87369.0,1.824e-05]
[1742857645233,0.65957262,87370.0,87350.0,0.9459459]
[1742857645548,0.1144669,87351.0,87350.0,1.029353]
[1742857645736,0.12352873,87351.0,87350.0,1.0476429]
[1742857645937,0.43158904,87351.0,87350.0,1.0476429]
[1742857646137,0.43278905,87351.0,87350.0,1.0476429]
[1742857646943,0.22672215,87351.0,87350.0,1.4984429]
[1742857647147,0.03242214,87351.0,87350.0,1.6863429]
[1742857647736,0.02336031,87351.0,87350.0,1.6863429]
[1742857647941,0.00875533,87351.0,87350.0,1.6863429]
[1742857651251,0.12442224,87351.0,87350.0,1.4412099]
[1742857651551,0.12442224,87351.0,87350.0,0.1589299]
[1742857651751,0.31942224,87351.0,87350.0,0.2733981]
[1742857651939,0.31942224,87351.0,87350.0,0.1333981]
[1742857652343,0.31942224,87351.0,87350.0,0.3733981]
[1742857652553,0.31942224,87351.0,87350.0,0.5732981]
[1742857656043,0.31942224,87351.0,87350.0,0.3733981]
[1742857656254,0.31942224,87351.0,87350.0,0.1333981]
[1742857657046,0.31942224,87351.0,87350.0,0.2277981]
[1742857657650,0.31942224,87351.0,87350.0,0.3288981]
[1742857657847,0.31942224,87351.0,87350.0,0.19614]
[1742857658049,0.31942224,87351.0,87350.0,0.1151082]
[1742857658958,0.31942224,87351.0,87350.0,0.2095082]
[1742857659663,0.31942224,87351.0,87350.0,0.09504]
[1742857659847,0.31942224,87351.0,87339.0,0.0572408]
[1742857659848,0.114476,87344.0,87343.0,0.11493296]
[1742857660157,0.11910183,87344.0,87343.0,0.16553296]
[1742857660665,0.11910183,87344.0,87343.0,0.16553536]
[1742857660855,0.12818321,87344.0,87343.0,0.16553536]
[1742857661158,0.34732322,87344.0,87337.0,0.1899]
[1742857661358,0.1144839,87338.0,87337.0,0.19120939]
[1742857661550,0.12520529,87338.0,87337.0,0.1743]
[1742857661748,0.41082391,87338.0,87337.0,0.2087852]
[1742857661954,0.42026204,87338.0,87337.0,0.3938852]
[1742857662356,0.42901737,87338.0,87337.0,0.3038852]
[1742857662759,0.42901737,87338.0,87337.0,0.1894]
[1742857662953,0.1144918,87332.0,87331.0,0.0572463]
[1742857663157,0.11605181,87332.0,87331.0,0.30389518]
[1742857663354,0.32320714,87332.0,87331.0,0.30389518]
[1742857663555,0.32320714,87332.0,87331.0,0.49979518]
[1742857663749,0.33211226,87332.0,87331.0,0.78152768]
[1742857664158,0.33311226,87332.0,87331.0,0.78152768]
[1742857664357,0.33311097,87332.0,87331.0,0.78152768]
[1742857664562,0.13471097,87332.0,87331.0,0.78152768]
[1742857664763,0.12424713,87332.0,87331.0,0.78152768]
[1742857664960,0.12580714,87332.0,87331.0,0.78152768]
[1742857665365,0.12680714,87332.0,87331.0,0.78152768]
[1742857665556,0.01231534,87332.0,87331.0,0.78152768]
[1742857665863,0.01075533,87332.0,87331.0,0.78152768]
[1742857666067,0.01231534,87332.0,87331.0,0.78152768]
[1742857666263,0.01075533,87332.0,87331.0,0.78152768]
[1742857666869,0.01971158,87332.0,87331.0,0.78152768]
[1742857668470,0.01971011,87332.0,87331.0,0.78152768]
[1742857669368,0.02135012,87332.0,87331.0,0.78152768]
[1742857670367,0.01971011,87332.0,87331.0,0.78152768]
[1742857671562,0.02127012,87332.0,87331.0,0.78152768]
[1742857672762,0.01971011,87332.0,87331.0,0.78152768]
[1742857674062,0.01971011,87332.0,87331.0,0.58562768]
[1742857674261,0.13420191,87332.0,87331.0,0.70766768]
[1742857674466,0.13576192,87332.0,87331.0,0.90306768]
[1742857674666,0.13420191,87332.0,87331.0,0.90306768]
[1742857674862,0.13580192,87332.0,87331.0,0.78102768]
[1742857675073,0.13580192,87332.0,87331.0,0.70754768]
[1742857675275,0.33620192,87332.0,87331.0,0.70754768]
[1742857678075,0.22171012,87332.0,87331.0,0.70754768]
[1742857679070,0.43836022,87332.0,87331.0,0.70754768]
[1742857679376,0.32386842,87332.0,87331.0,0.70754768]
[1742857679764,0.32391439,87332.0,87331.0,0.70754768]
[1742857680681,0.32391439,87332.0,87331.0,0.90644768]
[1742857681085,0.32391439,87332.0,87331.0,0.90568768]
[1742857681274,0.32231438,87332.0,87331.0,0.90568768]
[1742857681882,0.31331363,87332.0,87331.0,0.90568768]
[1742857682080,0.31491364,87332.0,87331.0,0.90568768]
[1742857682584,0.31331363,87332.0,87331.0,0.90568768]
[1742857683374,0.31487364,87332.0,87331.0,0.90568768]
[1742857683886,0.32376882,87332.0,87331.0,0.90568768]
[1742857684386,0.1362151,87336.0,87335.0,0.1144878]
[1742857684681,0.17024049,87341.0,87339.0,0.1144826]
[1742857684887,0.00129175,87340.0,87339.0,1.0809826]
[1742857685084,0.20047174,87340.0,87339.0,1.1800826]
[1742857685287,0.20167175,87340.0,87339.0,1.1800826]
[1742857685988,0.20400965,87346.0,87345.0,0.1144747]
[1742857686183,0.20400965,87346.0,87345.0,1.1271547]
[1742857686487,0.20400965,87346.0,87345.0,1.3178547]
[1742857686680,0.20476965,87346.0,87345.0,1.3178547]
[1742857687482,0.20476965,87346.0,87345.0,1.3188547]
[1742857688088,0.20476965,87346.0,87345.0,1.3198547]
[1742857688587,0.20476965,87346.0,87345.0,1.3218547]
[1742857689985,0.00076,87346.0,87345.0,1.3208547]
[1742857690181,0.1016,87351.0,87350.0,0.1144682]
[1742857690380,0.1016,87351.0,87350.0,0.6351082]
[1742857690580,0.1016,87351.0,87350.0,0.8324082]
[1742857690980,0.1997,87351.0,87350.0,0.8324082]
[1742857691380,0.1997,87351.0,87350.0,0.8334082]
[1742857691578,0.20046,87351.0,87350.0,0.8344082]
[1742857694983,0.20046,87351.0,87350.0,0.7401082]
[1742857695189,0.3149269,87351.0,87350.0,0.6371082]
[1742857695691,0.3149269,87351.0,87350.0,0.6428]
[1742857696093,0.20046,87351.0,87350.0,0.7572682]
[1742857696391,0.1997,87351.0,87350.0,0.9513682]
[1742857696582,0.2005,87351.0,87350.0,0.9513682]
[1742857696782,0.1997,87351.0,87350.0,0.9513682]
[1742857697186,0.2005,87351.0,87350.0,0.9513682]
[1742857698693,0.1997,87351.0,87350.0,0.9513682]
[1742857699292,0.20054,87351.0,87350.0,0.9513682]
[1742857699696,0.1997,87351.0,87350.0,0.9513682]
[1742857699909,0.20046,87351.0,87350.0,0.9513682]
[1742857700697,0.1997,87351.0,87350.0,0.9513682]
[1742857700891,0.2005,87351.0,87350.0,1.3121682]
[1742857702889,0.1997,87351.0,87350.0,1.3121682]
[1742857704203,0.20046,87351.0,87350.0,1.1920082]
[1742857704388,0.20046,87351.0,87350.0,1.3112882]
[1742857704588,0.1997,87351.0,87350.0,1.3112882]
[1742857706503,0.1997,87351.0,87350.0,1.2145482]
[1742857706701,0.1997,87351.0,87350.0,1.1169482]
[1742857706902,0.20046,87351.0,87350.0,1.1169482]
[1742857707200,0.20046,87351.0,87350.0,1.2135482]
[1742857708396,0.1997,87351.0,87350.0,1.2135482]
[1742857709287,0.20054,87351.0,87350.0,1.3153482]
[1742857709792,0.1997,87351.0,87350.0,1.3153482]
[1742857710701,0.10236,87351.0,87350.0,1.3153482]
[1742857710905,0.41,87376.0,87361.0,0.0572262]
[1742857711198,0.00116,87368.0,87367.0,0.4752459]
[1742857711397,0.00116,87368.0,87367.0,0.9858859]
[1742857711398,0.0004,87368.0,87367.0,0.9858859]
[1742857711606,0.0004,87368.0,87367.0,1.1781859]
[1742857712692,0.0024,87368.0,87367.0,1.1781859]
[1742857713902,0.0034,87368.0,87367.0,1.1781859]
[1742857715492,0.20400965,87372.0,87371.0,0.1144407]
[1742857715493,0.11503595,87372.0,87371.0,0.1144407]
[1742857715694,5e-08,87372.0,87371.0,1.8164007]
[1742857716008,5e-08,87372.0,87371.0,2.0038007]
[1742857716196,9e-08,87376.0,87375.0,0.1144354]
[1742857716391,9e-08,87376.0,87375.0,1.2440354]
[1742857716595,9e-08,87376.0,87375.0,1.3940354]
[1742857717000,9e-08,87376.0,87375.0,1.5814354]
[1742857717197,0.17027193,87385.0,87384.0,0.1144236]
[1742857717198,0.09356833,87385.0,87384.0,0.1144236]
[1742857717503,0.00076003,87385.0,87384.0,1.4458236]
[1742857717698,3e-08,87385.0,87384.0,1.2958236]
[1742857718098,3e-08,87385.0,87384.0,1.6360236]
[1742857718587,0.20432631,87391.0,87390.0,0.1144158]
[1742857718792,0.16426245,87391.0,87390.0,1.5637358]
[1742857719196,0.12419859,87391.0,87390.0,1.5637358]
[1742857719495,0.08413473,87391.0,87390.0,1.7551358]
[1742857719890,0.08413473,87391.0,87390.0,1.5051358]
[1742857720201,0.08413473,87391.0,87390.0,1.5060958]
[1742857720399,0.08413473,87391.0,87390.0,1.5070958]
[1742857720600,0.00017174,87393.0,87391.0,0.1144145]
[1742857720800,0.00017174,87393.0,87391.0,0.7050145]
[1742857721003,0.00017174,87393.0,87392.0,0.3122132]
[1742857721201,0.00017174,87393.0,87392.0,0.8928132]
[1742857722003,0.00017174,87393.0,87392.0,0.6798132]
[1742857722308,0.00017174,87393.0,87392.0,0.7975332]
[1742857723108,0.00017174,87393.0,87392.0,0.4706]
[1742857723410,0.11458364,87393.0,87392.0,0.3492]
[1742857723705,0.11534364,87393.0,87392.0,0.001]
[1742857723907,0.11534364,87393.0,87392.0,0.0616]
[1742857724491,0.11534364,87393.0,87392.0,0.0016]
[1742857724908,0.1144249,87383.0,87382.0,0.00017164]
[1742857725207,0.1155849,87383.0,87382.0,0.13081164]
[1742857725801,0.1155849,87383.0,87382.0,0.00081164]
[1742857726014,0.1155849,87383.0,87382.0,0.00017164]
[1742857726210,0.1155849,87383.0,87382.0,0.00081164]
[1742857726412,0.1155849,87383.0,87382.0,0.00017164]
[1742857726607,0.1155849,87383.0,87382.0,0.00133164]
[1742857726808,0.1165849,87383.0,87382.0,0.00133164]
[1742857727011,0.1165849,87383.0,87382.0,0.11575794]
[1742857727210,0.1165849,87383.0,87382.0,0.00133164]
[1742857727407,0.1165849,87383.0,87382.0,0.00017164]
[1742857727798,0.1185849,87383.0,87382.0,0.00017164]
[1742857728409,0.1165849,87383.0,87382.0,0.00077164]
[1742857728708,0.1195849,87383.0,87382.0,0.00077164]
[1742857728910,0.1195849,87383.0,87382.0,0.00017164]
[1742857729110,0.1175849,87383.0,87382.0,0.00077164]
[1742857729312,0.1195849,87383.0,87382.0,0.00077164]
[1742857729509,0.1195849,87383.0,87382.0,0.11519794]
[1742857730305,0.1195849,87383.0,87382.0,0.00077164]
[1742857730511,0.1195849,87383.0,87382.0,0.00017164]
[1742857731113,0.1195849,87383.0,87382.0,0.00081164]
[1742857731910,0.1175849,87383.0,87382.0,0.00081164]
[1742857732115,0.1195849,87383.0,87382.0,0.00081164]
[1742857734018,0.1175849,87383.0,87382.0,0.34523794]
[1742857734218,0.1195849,87383.0,87382.0,0.79653794]
[1742857734413,0.1184249,87383.0,87382.0,0.79653794]
[1742857734817,0.1174249,87383.0,87382.0,0.79653794]
[1742857735522,0.1164249,87383.0,87382.0,0.79653794]
[1742857735727,0.11754491,87383.0,87382.0,0.79653794]
[1742857739017,0.30984491,87383.0,87382.0,0.79653794]
[1742857740216,0.30984491,87383.0,87382.0,0.58111164]
[1742857740520,0.30984491,87383.0,87382.0,0.48081164]
[1742857741422,0.30984491,87383.0,87382.0,0.00081164]
[1742857741616,0.30984491,87383.0,87382.0,0.00017164]
[1742857743928,0.1716604,87372.0,87371.0,0.1144399]
[1742857744127,0.17278041,87372.0,87371.0,0.1150799]
[1742857744322,0.17278041,87372.0,87371.0,0.00064]
[1742857744529,0.1716721,87366.0,87365.0,0.1144482]
[1742857744728,0.17279211,87366.0,87365.0,0.1155682]
[1742857745429,0.26639211,87366.0,87365.0,0.3355682]
[1742857745625,0.26639211,87366.0,87365.0,0.4363682]
[1742857745927,0.26639211,87366.0,87365.0,0.5409682]
[1742857746430,0.26639211,87366.0,87365.0,0.5399682]
[1742857747223,0.09472001,87366.0,87365.0,0.6299682]
[1742857747423,0.00112001,87366.0,87365.0,0.6299682]
[1742857747731,0.00017164,87374.0,87373.0,0.114438]
[1742857747923,0.00017164,87374.0,87373.0,1.273638]
[1742857748821,0.00017164,87374.0,87373.0,1.274638]
[1742857749724,0.00017164,87374.0,87373.0,1.275638]
[1742857750916,0.0087045,87374.0,87373.0,1.275638]
[1742857751326,0.0087045,87374.0,87373.0,1.274638]
[1742857751526,0.0087045,87374.0,87373.0,1.275638]
[1742857752022,0.1231412,87374.0,87373.0,1.275638]
[1742857752227,0.00982451,87374.0,87373.0,1.275638]
[1742857752432,0.0087045,87374.0,87373.0,1.275638]
[1742857753323,0.1231412,87374.0,87373.0,1.275638]
[1742857753531,0.1231412,87374.0,87373.0,1.294018]
[1742857753829,0.2178412,87374.0,87373.0,0.817138]
[1742857754132,0.1243012,87374.0,87373.0,0.817138]
[1742857754835,0.1243012,87374.0,87373.0,0.815138]
[1742857755031,0.1243012,87374.0,87373.0,0.816138]
[1742857755536,0.1243012,87374.0,87373.0,0.817138]
[1742857755921,0.1243012,87374.0,87373.0,0.816138]
[1742857756231,0.0098645,87374.0,87373.0,0.816138]
[1742857756424,0.1243012,87374.0,87373.0,0.815138]
[1742857756628,0.1243012,87374.0,87373.0,0.816138]
[1742857759828,0.2246012,87374.0,87373.0,0.816138]
[1742857760536,0.3257012,87374.0,87373.0,0.816138]
[1742857761930,0.1243012,87374.0,87373.0,0.816138]
[1742857762136,0.0098645,87374.0,87373.0,0.816138]
[1742857762441,0.0087045,87374.0,87373.0,0.816138]
[1742857762731,0.00853286,87374.0,87373.0,0.816138]
[1742857762928,0.13585097,87376.0,87375.0,0.1144354]
[1742857763130,0.16981371,87382.0,87381.0,0.1144276]
[1742857763332,0.20387422,87389.0,87388.0,0.1144184]
[1742857763547,0.20471422,87389.0,87388.0,0.9858184]
[1742857763740,0.20387422,87389.0,87388.0,0.9858184]
[1742857764733,0.20687422,87389.0,87388.0,0.9858184]
[1742857765936,0.006,87389.0,87388.0,0.9858184]
[1742857766328,0.006,87389.0,87388.0,1.0835184]
[1742857766534,0.006,87389.0,87388.0,1.2783184]
[1742857767142,0.005,87389.0,87388.0,1.2783184]
[1742857773449,0.005,87389.0,87388.0,1.3929984]
[1742857775346,0.005,87389.0,87388.0,1.1806184]
[1742857775543,0.005,87389.0,87388.0,1.2952184]
[1742857775749,0.005,87389.0,87388.0,1.0833184]
[1742857776055,0.005,87389.0,87388.0,1.1978784]
[1742857776254,0.005,87389.0,87388.0,1.2970784]
[1742857778855,0.1038,87389.0,87388.0,1.2970784]
[1742857782851,0.005,87389.0,87388.0,1.2970784]
[1742857783951,0.005,87389.0,87388.0,1.1825184]
[1742857784255,0.005,87389.0,87388.0,1.2965984]
[1742857786149,0.1045,87394.0,87393.0,0.1144119]
[1742857786452,0.1045,87394.0,87393.0,0.6550119]
[1742857786652,0.1045,87394.0,87393.0,0.8597119]
[1742857787458,0.1085,87394.0,87393.0,0.8597119]
[1742857787956,0.1115,87394.0,87393.0,0.8597119]
[1742857789955,0.1043,87395.0,87394.0,0.1144105]
[1742857790163,0.1043,87395.0,87394.0,0.8531105]
[1742857790353,0.06424513,87395.0,87394.0,0.8531105]
[1742857790554,0.00017164,87397.0,87396.0,0.1144079]
[1742857790750,0.00017164,87397.0,87396.0,0.6650879]
[1742857790950,0.00017164,87397.0,87396.0,0.8753879]
[1742857791254,0.00017164,87397.0,87396.0,1.1053879]
[1742857791453,4e-08,87400.0,87399.0,0.114404]
[1742857791652,0.1021,87414.0,87413.0,0.1143857]
[1742857791848,0.10294,87414.0,87413.0,1.0994257]
[1742857792054,0.1021,87414.0,87413.0,1.3038257]
[1742857792253,0.11065982,87414.0,87413.0,1.3038257]
[1742857792866,0.1021,87414.0,87413.0,1.3038257]
[1742857794266,0.1051,87414.0,87413.0,1.32331142]
[1742857794462,0.1091,87414.0,87413.0,1.21991142]
[1742857794964,0.1091,87414.0,87413.0,1.32581142]
[1742857795767,0.1091,87414.0,87413.0,1.33420138]
[1742857798359,0.1091,87414.0,87413.0,1.22056138]
[1742857798659,0.1091,87414.0,87413.0,1.33388138]
[1742857799162,0.2234844,87414.0,87413.0,0.76614138]
[1742857799366,0.2242444,87414.0,87413.0,0.58614138]
[1742857799555,0.3284444,87414.0,87413.0,0.58614138]
[1742857799757,0.21406,87414.0,87413.0,0.58614138]
[1742857800157,0.3284444,87414.0,87413.0,0.49606138]
[1742857800758,0.21406,87414.0,87413.0,0.49606138]
[1742857800969,0.3284444,87414.0,87413.0,0.38286138]
[1742857801162,0.3284444,87414.0,87413.0,0.49602138]
[1742857801363,0.3284444,87414.0,87413.0,0.38286138]
[1742857801565,0.3284444,87414.0,87413.0,0.49602138]
[1742857801875,0.3284444,87414.0,87413.0,0.49598138]
[1742857802370,0.3284444,87414.0,87413.0,0.47649566]
[1742857802564,0.3284444,87414.0,87413.0,0.47645566]
[1742857803282,0.3284444,87414.0,87413.0,0.12337566]
[1742857803473,0.3284444,87414.0,87413.0,0.23645566]
[1742857803767,0.3284444,87414.0,87413.0,0.1149857]
[1742857803971,0.6892444,87414.0,87413.0,0.1149857]
[1742857804174,0.6892444,87414.0,87413.0,0.1143857]
[1742857804361,0.6892444,87414.0,87413.0,0.1150657]
[1742857805668,0.57486,87414.0,87413.0,0.4581457]
[1742857805868,0.21406,87414.0,87413.0,0.8785457]
[1742857806167,0.1112,87414.0,87413.0,0.8785457]
[1742857808159,0.00776,87414.0,87413.0,0.8785457]
[1742857808356,0.007,87414.0,87413.0,0.8785457]
[1742857808657,0.10816,87414.0,87413.0,0.8785457]
[1742857809072,0.2145,87414.0,87413.0,0.8785457]
[1742857809671,0.3288844,87414.0,87413.0,0.8785457]
[1742857809872,0.3297244,87414.0,87413.0,0.8785457]
[1742857810781,0.3297244,87414.0,87413.0,0.7775457]
[1742857810967,0.3297244,87414.0,87413.0,0.6779857]
[1742857811365,0.1222244,87414.0,87413.0,0.6779857]
[1742857811572,0.1213844,87414.0,87413.0,0.8840857]
[1742857811774,0.3281844,87414.0,87413.0,0.8840857]
[1742857811970,0.3290244,87414.0,87413.0,0.8840857]
[1742857812778,0.3290244,87414.0,87413.0,0.7771857]
[1742857813168,0.3290244,87414.0,87413.0,0.6779857]
[1742857814177,0.21464,87414.0,87413.0,0.6779857]
[1742857814479,0.2138,87414.0,87413.0,0.8868857]
[1742857814974,0.21456,87414.0,87413.0,0.8868857]
[1742857815373,0.2138,87414.0,87413.0,0.8868857]
[1742857816583,0.21464,87414.0,87413.0,0.8868857]
[1742857817272,0.00784,87414.0,87413.0,0.8868857]
[1742857817468,0.007,87414.0,87413.0,0.8868857]
[1742857818379,0.2124,87414.0,87413.0,0.8868857]
[1742857819371,0.2132,87414.0,87413.0,0.8868857]
[1742857819577,0.2124,87414.0,87413.0,0.8868857]
[1742857819777,0.2132,87414.0,87413.0,0.8868857]
[1742857820781,0.2124,87414.0,87413.0,0.8868857]
[1742857820981,0.21316,87414.0,87413.0,0.8868857]
[1742857821482,0.00776,87414.0,87413.0,0.8868857]
[1742857821686,0.007,87414.0,87413.0,0.8868857]
[1742857821893,0.00017164,87422.0,87421.0,0.1143752]
[1742857822183,0.00093164,87422.0,87421.0,1.0257752]
[1742857822390,0.00017164,87422.0,87421.0,1.0257752]
[1742857822887,0.00017164,87422.0,87421.0,1.1331752]
[1742857823879,0.20387422,87429.0,87428.0,0.1143661]
[1742857824079,0.20467422,87429.0,87428.0,1.0782861]
[1742857824288,0.20387422,87429.0,87428.0,1.0782861]
[1742857824490,0.20463422,87429.0,87428.0,1.0782861]
[1742857825086,0.00076,87429.0,87428.0,1.0782861]
[1742857825281,0.0004,87432.0,87431.0,0.1143621]
[1742857825611,0.0004,87432.0,87431.0,0.6349621]
[1742857825802,0.0004,87432.0,87431.0,0.7391621]
[1742857826388,0.13651973,87435.0,87434.0,0.1143582]
[1742857826592,0.13651973,87435.0,87434.0,0.6543582]
[1742857827288,0.13651973,87435.0,87434.0,0.7584582]
[1742857827684,0.13751973,87435.0,87434.0,0.7584582]
[1742857827877,0.13851973,87435.0,87434.0,0.7584582]
[1742857828784,0.184033,87450.0,87449.0,0.1143386]
[1742857828995,0.2054,87459.0,87458.0,0.1143268]
[1742857829194,0.2054,87459.0,87458.0,0.7265668]
[1742857829997,0.21397005,87459.0,87458.0,0.9264668]
[1742857830888,0.21797005,87459.0,87458.0,0.9264668]
[1742857831095,0.2132,87459.0,87458.0,0.93605651]
[1742857831281,0.2132,87459.0,87458.0,0.9553412]
[1742857831592,0.3275255,87459.0,87458.0,0.6432012]
[1742857831892,0.3275255,87459.0,87458.0,0.50653149]
[1742857832697,0.3275255,87459.0,87458.0,0.4872468]
[1742857833593,0.1143268,87458.0,87457.0,0.2286542]
[1742857833795,0.1154068,87458.0,87457.0,0.2927618]
[1742857833992,0.2222068,87458.0,87457.0,0.2921218]
[1742857834591,0.2222068,87458.0,87457.0,0.1800818]
[1742857835198,0.2252068,87458.0,87457.0,0.1800818]
[1742857835398,0.2272068,87458.0,87457.0,0.1800818]
[1742857836587,0.1143307,87456.0,87455.0,0.1143302]
[1742857836790,0.171496,87455.0,87454.0,0.2262509]
[1742857836995,0.493396,87455.0,87454.0,0.3405818]
[1742857837392,0.854196,87455.0,87454.0,0.3405818]
[1742857837592,0.854196,87455.0,87454.0,0.3411818]
[1742857837794,0.854196,87455.0,87454.0,0.2292618]
[1742857838596,0.857196,87455.0,87454.0,0.1149309]
[1742857838790,0.857196,87455.0,87454.0,0.1143309]
[1742857839398,1.267196,87455.0,87454.0,0.1143309]
[1742857840305,1.270196,87455.0,87454.0,0.1143309]
[1742857841206,0.1143321,87454.0,87453.0,0.11188]
[1742857841397,0.11537211,87454.0,87453.0,0.15188]
[1742857841597,0.32727211,87454.0,87453.0,0.15188]
[1742857841792,0.32727211,87454.0,87453.0,0.2662134]
[1742857841999,0.32727211,87454.0,87453.0,0.15252]
[1742857842193,0.32727211,87454.0,87453.0,0.15188]
[1742857842503,0.32727211,87454.0,87453.0,0.2662134]
[1742857842703,0.32727211,87454.0,87453.0,0.2668534]
[1742857843095,0.33027211,87454.0,87453.0,0.2668534]
[1742857844203,0.33327211,87454.0,87453.0,0.2668534]
[1742857844899,0.33327211,87454.0,87441.0,0.114349]
[1742857844900,0.0571681,87451.0,87441.0,0.114349]
[1742857845097,0.1143477,87442.0,87441.0,0.0706]
[1742857845295,0.1143477,87442.0,87441.0,0.18164]